bitfinex/quotes_SOLUSD_20250308
["timestamp","ask_amount","ask_price","bid_price","bid_amount"]
[1741392184910,7.1603,139.66,139.63,50.82972221]
[1741392185087,7.1603,139.66,139.61,50.82972221]
[1741392185285,57.99002221,139.66,139.59,50.82972221]
[1741392185686,50.82972221,139.65,139.58,50.85972221]
[1741392185997,25.0609,139.66,139.58,50.85972221]
[1741392185998,25.0609,139.66,139.59,50.82972221]
[1741392186203,7.1592,139.68,139.63,50.82972221]
[1741392186721,75.88692221,139.68,139.61,50.82972221]
[1741392186889,25.0572,139.68,139.62,50.82972221]
[1741392187495,7.1592,139.68,139.63,50.82972221]
[1741392187695,7.1592,139.68,139.64,50.82972221]
[1741392188089,0.033,139.71,139.67,50.82972221]
[1741392188318,0.033,139.71,139.69,50.82972221]
[1741392188811,0.033,139.71,139.68,50.82972221]
[1741392189314,0.033,139.71,139.7,50.82972221]
[1741392189698,0.033,139.71,139.65,50.82972221]
[1741392189699,0.033,139.71,139.68,50.82972221]
[1741392189903,0.033,139.71,139.65,50.82972221]
[1741392190214,75.88322221,139.7,139.63,50.82972221]
[1741392190399,50.82972221,139.69,139.62,50.82972221]
[1741392190797,50.82972221,139.68,139.62,50.82972221]
[1741392190996,50.82972221,139.67,139.6,50.82972221]
[1741392191195,50.82972221,139.66,139.59,50.82972221]
[1741392191513,82.3,139.67,139.63,50.82972221]
[1741392191694,82.3,139.67,139.61,50.82972221]
[1741392192012,50.82972221,139.65,139.58,50.85972221]
[1741392192312,7.1612,139.64,139.58,50.85972221]
[1741392192499,57.99092221,139.64,139.58,0.03]
[1741392192701,50.82972221,139.63,139.58,0.03]
[1741392193021,25.0643,139.64,139.58,0.03]
[1741392193022,50.82972221,139.61,139.58,0.03]
[1741392193314,75.89402221,139.64,139.58,0.03]
[1741392193500,50.82972221,139.63,139.58,0.03]
[1741392193691,133.12972221,139.62,139.58,0.03]
[1741392194210,89.4623,139.62,139.58,50.85972221]
[1741392194390,158.19772221,139.62,139.58,0.03]
[1741392194711,89.4623,139.62,139.58,0.03]
[1741392194919,82.3,139.62,139.58,50.85972221]
[1741392195099,7.1602,139.66,139.6,50.82972221]
[1741392195297,89.4597,139.67,139.62,50.82972221]
[1741392195896,89.4597,139.67,139.61,50.82972221]
[1741392196312,50.82972221,139.66,139.59,50.82972221]
[1741392196609,50.82972221,139.66,139.58,50.85972221]
[1741392196913,50.82972221,139.66,139.59,50.82972221]
[1741392197116,50.82972221,139.65,139.58,50.85972221]
[1741392197414,107.359,139.67,139.6,50.82972221]
[1741392197712,89.4597,139.67,139.61,50.82972221]
[1741392198603,89.4597,139.67,139.62,50.82972221]
[1741392199112,57.98852221,139.69,139.63,50.82972221]
[1741392199413,0.033,139.71,139.68,50.82972221]
[1741392199712,0.033,139.71,139.7,50.82972221]
[1741392200294,0.033,139.71,139.7,57.98782221]
[1741392200605,0.033,139.71,139.7,50.82972221]
[1741392200805,0.033,139.71,139.7,57.98782221]
[1741392202015,0.033,139.71,139.7,50.82972221]
[1741392203391,0.033,139.71,139.7,57.98782221]
[1741392203602,0.033,139.71,139.7,50.82972221]
[1741392204113,0.033,139.71,139.69,50.82972221]
[1741392204620,0.033,139.71,139.7,50.82972221]
[1741392204799,0.033,139.71,139.69,50.82972221]
[1741392205115,0.033,139.71,139.66,50.82972221]
[1741392205720,50.86272221,139.71,139.64,50.82972221]
[1741392205895,50.82972221,139.7,139.63,50.82972221]
[1741392206293,50.82972221,139.69,139.62,50.82972221]
[1741392206506,0.033,139.71,139.61,50.82972221]
[1741392206507,50.82972221,139.68,139.61,50.82972221]
[1741392206716,50.82972221,139.69,139.63,50.82972221]
[1741392207035,0.033,139.71,139.65,50.82972221]
[1741392207318,0.033,139.71,139.6,7.1931]
[1741392207319,0.033,139.71,139.68,50.82972221]
[1741392207510,0.033,139.71,139.7,50.82972221]
[1741392208321,0.033,139.71,139.7,101.65944442]
[1741392208532,0.0001,139.74,139.7,236.25944442]
[1741392208719,0.0001,139.74,139.73,50.82972221]
[1741392209617,0.0001,139.74,139.73,57.98632221]
[1741392210402,0.0001,139.74,139.73,192.58632221]
[1741392210597,0.03,139.79,139.74,2.0]
[1741392210821,0.033,139.8,139.78,101.65944442]
[1741392211001,0.033,139.8,139.79,101.65944442]
[1741392211711,0.033,139.8,139.79,108.81294442]
[1741392212303,0.033,139.8,139.79,109.88531848]
[1741392212603,0.0001,139.81,139.79,244.48531848]
[1741392212797,0.0001,139.81,139.8,50.82972221]
[1741392214224,0.0001,139.81,139.76,50.82972221]
[1741392214726,0.0001,139.81,139.72,185.42972221]
[1741392214727,0.0001,139.81,139.8,50.82972221]
[1741392215127,0.0001,139.81,139.78,50.82972221]
[1741392215631,0.0001,139.81,139.8,50.82972221]
[1741392215997,0.0001,139.81,139.8,192.58272221]
[1741392216305,0.03,139.82,139.8,192.58272221]
[1741392216616,0.0001,139.82,139.81,51.90189372]
[1741392216794,0.0001,139.82,139.81,186.50189372]
[1741392216998,0.0001,139.82,139.81,185.42972221]
[1741392217706,0.033,139.85,139.84,101.65944442]
[1741392218339,0.0001,139.85,139.84,236.25944442]
[1741392219039,0.0001,139.85,139.84,101.65944442]
[1741392219204,0.0001,139.85,139.84,237.33131169]
[1741392219404,0.0001,139.85,139.84,236.25944442]
[1741392219828,0.0001,139.85,139.84,243.41044442]
[1741392220637,0.0001,139.88,139.86,101.65944442]
[1741392220816,0.0001,139.88,139.87,50.82972221]
[1741392221761,0.0001,139.88,139.87,57.97912221]
[1741392223972,0.0001,139.88,139.87,50.82972221]
[1741392225270,0.0001,139.88,139.85,50.82972221]
[1741392225552,0.0001,139.88,139.84,50.82972221]
[1741392225936,50.82982221,139.88,139.74,141.0491]
[1741392226155,0.0001,139.88,139.84,50.82972221]
[1741392226362,0.0001,139.88,139.86,50.82972221]
[1741392226647,0.0001,139.88,139.87,50.82972221]
[1741392228355,0.0001,139.88,139.86,50.82972221]
[1741392228657,0.0001,139.88,139.85,50.82972221]
[1741392228843,0.0001,139.88,139.84,50.82972221]
[1741392229155,0.0001,139.88,139.85,50.82972221]
[1741392229329,0.0001,139.88,139.82,7.152]
[1741392229330,0.0001,139.88,139.87,50.82972221]
[1741392229526,0.0001,139.88,139.85,50.82972221]
[1741392229730,0.0001,139.88,139.83,50.82972221]
[1741392229946,0.0001,139.88,139.81,50.82972221]
[1741392229947,50.82972221,139.87,139.81,50.82972221]
[1741392230153,50.82972221,139.87,139.8,50.82972221]
[1741392230355,50.82972221,139.86,139.79,50.82972221]
[1741392230552,50.82972221,139.85,139.78,50.82972221]
[1741392230753,50.82972221,139.85,139.79,50.82972221]
[1741392230949,50.82972221,139.83,139.77,50.82972221]
[1741392231151,50.82972221,139.83,139.76,50.82972221]
[1741392231652,50.82972221,139.8,139.74,50.82972221]
[1741392232045,7.152,139.82,139.76,50.82972221]
[1741392232252,7.152,139.82,139.77,50.82972221]
[1741392232446,7.152,139.82,139.78,50.82972221]
[1741392232631,7.152,139.82,139.77,50.82972221]
[1741392232834,7.152,139.82,139.76,50.82972221]
[1741392233159,75.86182221,139.82,139.75,50.82972221]
[1741392233476,50.82972221,139.8,139.72,0.033]
[1741392233832,50.82972221,139.8,139.74,50.82972221]
[1741392234030,25.0321,139.82,139.74,50.82972221]
[1741392234031,7.1535,139.79,139.74,50.82972221]
[1741392234235,7.1531,139.8,139.75,50.82972221]
[1741392234458,82.3,139.83,139.77,50.82972221]
[1741392234766,7.1505,139.85,139.79,50.82972221]
[1741392234937,57.98022221,139.85,139.79,50.82972221]
[1741392235260,57.98022221,139.85,139.78,50.82972221]
[1741392235463,50.82972221,139.84,139.77,50.82972221]
[1741392235841,50.82972221,139.83,139.77,50.82972221]
[1741392236056,57.98272221,139.8,139.74,50.82972221]
[1741392236254,50.82972221,139.79,139.73,50.82972221]
[1741392236448,50.82972221,139.78,139.72,0.033]
[1741392237149,57.13822221,139.76,139.72,0.033]
[1741392237352,50.82972221,139.75,139.72,0.033]
[1741392237542,57.13822221,139.76,139.72,0.033]
[1741392238072,6.3085,139.76,139.72,0.033]
[1741392238273,6.3085,139.76,139.73,50.82972221]
[1741392238440,57.13822221,139.8,139.74,50.82972221]
[1741392238760,13.4617,139.8,139.75,50.82972221]
[1741392238943,13.4617,139.8,139.74,50.82972221]
[1741392239948,82.17402221,139.8,139.73,50.82972221]
[1741392240253,50.82972221,139.78,139.72,0.033]
[1741392240450,50.82972221,139.76,139.72,0.033]
[1741392240650,133.12972221,139.75,139.72,0.033]
[1741392240968,82.3,139.75,139.72,0.033]
[1741392241486,50.82972221,139.74,139.72,0.033]
[1741392241843,190.28632221,139.73,139.64,50.82972221]
[1741392242038,50.82972221,139.69,139.62,50.85972221]
[1741392242268,50.82972221,139.67,139.62,0.03]
[1741392242765,133.12972221,139.68,139.62,50.85972221]
[1741392243067,50.82972221,139.66,139.62,0.03]
[1741392243443,50.82972221,139.65,139.62,0.03]
[1741392243645,50.82972221,139.67,139.62,0.03]
[1741392243863,50.82972221,139.65,139.62,0.03]
[1741392244048,50.82972221,139.64,139.62,0.03]
[1741392244246,50.82972221,139.65,139.62,0.03]
[1741392244963,50.82972221,139.63,139.62,0.03]
[1741392245539,25.0608,139.66,139.62,0.03]
[1741392245540,57.98992221,139.66,139.62,0.03]
[1741392245743,50.82972221,139.65,139.62,0.03]
[1741392246055,50.82972221,139.64,139.62,0.03]
[1741392246253,133.12972221,139.63,139.62,0.03]
[1741392246645,82.3,139.63,139.62,0.03]
[1741392246858,133.12972221,139.63,139.62,0.03]
[1741392247055,82.3,139.67,139.62,0.03]
[1741392247371,82.3,139.67,139.62,50.85972221]
[1741392247549,82.3,139.67,139.63,50.82972221]
[1741392247753,82.3,139.67,139.65,50.82972221]
[1741392247954,89.4597,139.67,139.62,50.85972221]
[1741392248160,89.4597,139.67,139.62,0.03]
[1741392248669,50.82972221,139.66,139.62,0.03]
[1741392248876,82.3,139.67,139.62,58.02172221]
[1741392249053,82.3,139.67,139.65,50.82972221]
[1741392249371,6.4295,139.71,139.66,50.82972221]
[1741392249372,95.8872,139.71,139.66,50.82972221]
[1741392249868,82.3,139.74,139.69,50.82972221]
[1741392250169,6.0055,139.76,139.71,50.82972221]
[1741392250368,82.3,139.78,139.74,50.82972221]
[1741392250868,89.4541,139.78,139.73,50.82972221]
[1741392251059,133.12972221,139.77,139.7,50.82972221]
[1741392251264,50.82972221,139.75,139.66,7.1602]
[1741392251465,50.82972221,139.75,139.69,50.82972221]
[1741392252173,57.98582221,139.75,139.69,50.82972221]
[1741392252357,7.1561,139.75,139.7,50.82972221]
[1741392252551,133.12972221,139.74,139.62,1.6008]
[1741392252753,133.12972221,139.74,139.67,50.82972221]
[1741392252982,50.82972221,139.73,139.67,50.82972221]
[1741392253571,50.82972221,139.73,139.66,50.82972221]
[1741392253772,50.82972221,139.71,139.65,50.82972221]
[1741392253979,7.1581,139.7,139.64,50.82972221]
[1741392254158,7.1581,139.7,139.65,50.82972221]
[1741392254676,7.1581,139.7,139.62,7.1918]
[1741392254677,89.4576,139.72,139.67,50.82972221]
[1741392255051,82.3,139.72,139.7,50.82972221]
[1741392255256,89.4542,139.78,139.71,50.82972221]
[1741392255484,82.3,139.78,139.74,50.82972221]
[1741392255852,6.0055,139.8,139.75,50.82972221]
[1741392256052,133.12972221,139.84,139.77,50.82972221]
[1741392256357,89.4515,139.83,139.79,50.82972221]
[1741392256560,89.4515,139.83,139.77,50.82972221]
[1741392256871,89.4515,139.83,139.76,50.82972221]
[1741392256872,0.03,139.78,139.76,50.82972221]
[1741392257360,0.03,139.78,139.77,50.82972221]
[1741392257755,7.1492,139.88,139.77,101.65944442]
[1741392257960,0.0001,139.88,139.87,50.82972221]
[1741392258358,0.0001,139.88,139.85,50.82972221]
[1741392258562,0.0001,139.88,139.83,50.82972221]
[1741392258962,0.0001,139.88,139.85,50.82972221]
[1741392259382,50.82982221,139.88,139.81,50.82972221]
[1741392259582,50.82972221,139.85,139.79,50.82972221]
[1741392259762,50.82972221,139.85,139.78,50.82972221]
[1741392259961,82.3,139.87,139.79,50.82972221]
[1741392260174,75.85472221,139.86,139.79,50.82972221]
[1741392260485,7.15,139.86,139.8,50.82972221]
[1741392261479,0.0001,139.88,139.79,50.82972221]
[1741392261686,25.0216,139.88,139.82,50.82972221]
[1741392261982,57.97892221,139.88,139.81,50.82972221]
[1741392262176,7.1492,139.88,139.82,50.82972221]
[1741392262379,7.1492,139.88,139.79,50.82972221]
[1741392262380,0.0001,139.88,139.84,50.82972221]
[1741392262971,0.0001,139.88,139.83,50.82972221]
[1741392263670,0.0001,139.88,139.84,50.82972221]
[1741392263866,7.1491,139.88,139.84,50.82972221]
[1741392264080,0.0001,139.88,139.84,50.82972221]
[1741392264483,0.0001,139.88,139.79,50.82972221]
[1741392264484,0.0001,139.88,139.85,50.82972221]
[1741392264667,0.0001,139.88,139.86,50.82972221]
[1741392265081,0.0001,139.88,139.85,50.82972221]
[1741392265498,0.0001,139.88,139.86,50.82972221]
[1741392266689,0.0001,139.88,139.87,50.82972221]
[1741392267090,0.03,139.92,139.91,50.82972221]
[1741392267471,0.03,139.92,139.86,75.85452221]
[1741392267670,0.03,139.92,139.89,50.82972221]
[1741392268568,0.03,139.92,139.91,50.82972221]
[1741392269773,0.03,139.92,139.9,50.82972221]
[1741392269978,0.03,139.92,139.89,50.82972221]
[1741392270172,0.03,139.92,139.88,50.82972221]
[1741392270893,0.03,139.92,139.86,50.82972221]
[1741392271071,50.85972221,139.92,139.85,50.82972221]
[1741392271474,50.85972221,139.92,139.86,50.82972221]
[1741392272593,50.85972221,139.92,139.85,50.82972221]
[1741392272594,158.14572221,139.91,139.85,50.82972221]
[1741392272782,50.82972221,139.88,139.82,50.82972221]
[1741392273011,50.82972221,139.88,139.81,50.82972221]
[1741392273288,6.6907,139.92,139.87,50.82972221]
[1741392273289,0.03,139.92,139.87,50.82972221]
[1741392273491,0.03,139.92,139.8,1.07225195]
[1741392273691,50.82972221,139.91,139.85,50.82972221]
[1741392273893,50.82972221,139.9,139.84,50.82972221]
[1741392274399,7.1771,139.92,139.87,50.82972221]
[1741392274776,7.1771,139.92,139.86,50.82972221]
[1741392275103,75.87412221,139.92,139.86,50.82972221]
[1741392275469,50.82972221,139.9,139.84,50.82972221]
[1741392275677,50.82972221,139.88,139.78,7.154]
[1741392275877,50.82972221,139.86,139.8,50.82972221]
[1741392276188,50.82972221,139.84,139.77,50.82972221]
[1741392276497,50.82972221,139.82,139.76,50.82972221]
[1741392276695,25.0339,139.81,139.76,50.82972221]
[1741392276884,82.3,139.85,139.8,50.82972221]
[1741392277087,82.3,139.89,139.83,50.82972221]
[1741392277288,82.3,139.89,139.79,50.82972221]
[1741392277289,7.1489,139.88,139.84,50.82972221]
[1741392277509,7.1489,139.88,139.83,50.82972221]
[1741392278020,50.82972221,139.87,139.81,50.82972221]
[1741392278382,50.82972221,139.84,139.78,50.82972221]
[1741392278579,50.82972221,139.84,139.73,134.6]
[1741392278580,50.82972221,139.84,139.77,50.82972221]
[1741392278803,82.3,139.85,139.8,50.82972221]
[1741392279007,82.3,139.85,139.81,50.82972221]
[1741392279209,82.3,139.85,139.82,50.82972221]
[1741392280071,82.3,139.85,139.81,50.82972221]
[1741392280276,82.3,139.85,139.81,50.86272221]
[1741392280500,89.4505,139.85,139.81,50.86272221]
[1741392280882,89.4505,139.85,139.81,0.033]
[1741392281077,140.28022221,139.85,139.81,0.033]
[1741392281686,89.4505,139.85,139.81,0.033]
[1741392282092,82.3,139.85,139.81,0.033]
[1741392282295,82.3,139.85,139.81,58.01522221]
[1741392282502,89.4507,139.85,139.81,0.033]
[1741392283412,50.82972221,139.84,139.81,0.033]
[1741392283591,50.82972221,139.82,139.81,0.033]
[1741392284413,75.86182221,139.82,139.72,50.86272221]
[1741392284620,50.82972221,139.79,139.72,50.86272221]
[1741392284822,50.82972221,139.79,139.73,50.82972221]
[1741392285014,50.82972221,139.8,139.73,50.82972221]
[1741392285794,82.3,139.81,139.75,50.82972221]
[1741392285998,82.3,139.81,139.76,50.82972221]
[1741392286419,82.3,139.81,139.75,50.82972221]
[1741392286619,89.4527,139.81,139.76,50.82972221]
[1741392287414,140.28242221,139.81,139.74,50.82972221]
[1741392287910,82.3,139.81,139.76,50.82972221]
[1741392288222,82.3,139.81,139.77,50.82972221]
[1741392288391,82.3,139.81,139.78,50.82972221]
[1741392288706,6.652,139.83,139.78,57.98362221]
[1741392289814,13.8035,139.83,139.78,57.98362221]
[1741392290407,50.82972221,139.82,139.73,25.0481]
[1741392290594,82.3,139.84,139.8,50.82972221]
[1741392291205,82.3,139.84,139.81,50.82972221]
[1741392291801,89.4512,139.84,139.78,50.82972221]
[1741392292007,140.28092221,139.84,139.78,50.82972221]
[1741392292404,140.31092221,139.84,139.78,50.82972221]
[1741392292907,140.31092221,139.84,139.78,57.98372221]
[1741392293115,140.31092221,139.84,139.78,50.82972221]
[1741392294114,140.31092221,139.84,139.78,57.98372221]
[1741392294815,140.31092221,139.84,139.78,50.82972221]
[1741392294993,82.33,139.84,139.79,50.82972221]
[1741392295316,89.4812,139.84,139.8,50.82972221]
[1741392296614,89.4812,139.84,139.79,7.1533]
[1741392296785,89.4812,139.84,139.79,57.98302221]
[1741392297510,0.03,139.84,139.79,57.98302221]
[1741392297815,0.03,139.84,139.83,50.82972221]
[1741392298415,0.03,139.84,139.82,50.82972221]
[1741392300100,0.03,139.84,139.81,50.82972221]
[1741392300301,0.03,139.84,139.78,50.82972221]
[1741392300497,0.03,139.84,139.81,50.82972221]
[1741392300797,0.03,139.84,139.8,50.82972221]
[1741392301005,0.03,139.84,139.83,50.82972221]
[1741392302017,0.03,139.84,139.75,7.1556]
[1741392302219,50.85972221,139.84,139.75,7.1556]
[1741392302514,50.85972221,139.84,139.77,50.82972221]
[1741392302712,50.82972221,139.8,139.72,0.033]
[1741392302916,50.82972221,139.78,139.72,50.86272221]
[1741392303113,82.3,139.79,139.72,0.033]
[1741392303314,33.66220167,139.76,139.72,0.033]
[1741392303519,33.66220167,139.75,139.72,0.033]
[1741392303698,33.66220167,139.74,139.72,0.033]
[1741392303902,7.1566,139.73,139.72,0.033]
[1741392304102,40.81830167,139.75,139.72,0.033]
[1741392304519,82.3,139.74,139.72,0.033]
[1741392304718,115.96220167,139.74,139.72,0.033]
[1741392304897,33.66220167,139.73,139.72,0.033]
[1741392305097,40.17580167,139.73,139.72,0.033]
[1741392305420,57.04810222,139.73,139.72,0.033]
[1741392305793,82.3,139.79,139.72,57.72430222]
[1741392306116,6.5136,139.8,139.76,50.53450222]
[1741392306322,82.3,139.82,139.76,50.53450222]
[1741392306498,82.3,139.82,139.78,50.53450222]
[1741392306819,0.03,139.84,139.81,50.53450222]
[1741392307127,0.03,139.84,139.79,50.53450222]
[1741392307329,50.56450222,139.84,139.78,50.53450222]
[1741392307492,57.71550222,139.84,139.78,50.53450222]
[1741392307914,50.53450222,139.83,139.76,50.53450222]
[1741392308119,57.71550222,139.84,139.77,50.53450222]
[1741392308397,0.03,139.84,139.81,50.53450222]
[1741392308610,82.33,139.92,139.83,50.53450222]
[1741392308814,0.03,139.92,139.83,137.67227674]
[1741392309014,0.03,139.92,139.84,2.0]
[1741392309205,0.03,139.92,139.86,2.0]
[1741392309399,0.03,139.92,139.86,135.67182579]
[1741392309600,0.03,139.92,139.86,134.6]
[1741392309800,0.03,139.92,139.91,50.53450222]
[1741392310117,0.03,139.92,139.9,50.53450222]
[1741392310317,0.03,139.92,139.87,50.53450222]
[1741392310619,0.03,139.92,139.76,81.5]
[1741392310620,50.0,139.88,139.76,6.2617]
[1741392310822,82.3,139.87,139.73,8.6667]
[1741392311005,50.53450222,139.85,139.78,50.53450222]
[1741392311204,50.53450222,139.85,139.79,50.53450222]
[1741392311410,82.3,139.86,139.82,50.53450222]
[1741392311717,50.53450222,139.84,139.73,1.5101]
[1741392311915,132.83450222,139.85,139.79,50.53450222]
[1741392312101,82.3,139.85,139.8,50.53450222]
[1741392312304,82.3,139.85,139.81,50.53450222]
[1741392312505,82.3,139.85,139.82,50.53450222]
[1741392312707,50.0,139.91,139.73,163.1581]
[1741392312708,89.4482,139.9,139.83,50.53450222]
[1741392312999,82.3,139.9,139.85,50.53450222]
[1741392313202,0.03,139.92,139.87,50.53450222]
[1741392315128,0.03,139.92,139.91,50.53450222]
[1741392316820,0.03,139.92,139.9,50.53450222]
[1741392317307,0.03,139.92,139.91,50.53450222]
[1741392318523,0.03,139.92,139.91,57.68190222]
[1741392318833,0.03,139.92,139.91,50.53450222]
[1741392319312,0.03,139.92,139.91,57.68190222]
[1741392320135,2.0932419,139.95,139.91,242.81640444]
[1741392320306,2.0932419,139.95,139.94,50.53450222]
[1741392320936,2.0932419,139.95,139.94,51.60590698]
[1741392321117,4.19e-05,139.95,139.94,194.81570698]
[1741392321444,132.83450222,140.1,139.95,3.6334]
[1741392321731,50.53450222,140.07,140.01,50.53450222]
[1741392322104,50.0,140.08,139.99,50.53450222]
[1741392322309,50.53450222,140.03,139.97,50.53450222]
[1741392322509,50.53450222,140.03,139.96,50.53450222]
[1741392322722,50.53450222,140.01,139.95,50.53450222]
[1741392323133,50.56450222,140.02,139.96,50.53450222]
[1741392323506,0.03,140.02,139.97,50.53450222]
[1741392325422,50.53450222,140.0,139.94,50.53450222]
[1741392325619,50.53450222,139.99,139.93,50.53450222]
[1741392326024,50.53450222,140.0,139.93,50.53450222]
[1741392326617,50.53450222,140.0,139.93,57.68090222]
[1741392326816,50.53450222,140.0,139.93,50.53450222]
[1741392327028,50.53450222,139.99,139.92,50.53450222]
[1741392327341,50.53450222,140.0,139.93,50.53450222]
[1741392327512,82.3,140.01,139.95,50.53450222]
[1741392327711,0.03,140.0,139.95,50.53450222]
[1741392327944,0.03,140.0,139.94,50.53450222]
[1741392328134,0.03,140.0,139.98,50.53450222]
[1741392328452,0.03,140.0,139.96,50.53450222]
[1741392328652,50.53450222,139.99,139.92,50.53450222]
[1741392328818,0.03,140.0,139.91,7.1474]
[1741392329258,50.53450222,139.97,139.91,50.53450222]
[1741392329619,0.03,140.0,139.95,50.53450222]
[1741392329918,0.03,140.0,139.96,50.53450222]
[1741392330420,0.03,140.0,139.95,50.53450222]
[1741392330930,0.03,140.0,139.9,17.8699]
[1741392331116,0.03,140.0,139.89,25.0195]
[1741392331314,0.03,140.0,139.96,50.53450222]
[1741392332111,0.03,140.0,139.97,50.53450222]
[1741392332311,0.03,140.0,139.98,50.53450222]
[1741392332544,0.03,140.0,139.99,50.53450222]
[1741392332752,0.03,140.0,139.99,57.67780222]
[1741392333427,0.03,140.02,139.99,108.21230444]
[1741392333630,0.03,140.02,140.01,50.53450222]
[1741392333631,0.0001,140.02,140.01,50.53450222]
[1741392333814,0.03,140.06,140.01,50.53450222]
[1741392334020,0.03,140.06,140.05,50.53450222]
[1741392335621,0.03,140.06,140.05,57.67480222]
[1741392335833,0.03,140.06,140.05,108.20930444]
[1741392337039,0.03,140.06,140.05,242.80930444]
[1741392337434,0.03,140.06,140.05,244.80930444]
[1741392337639,0.03,140.17,140.05,262.66000444]
[1741392337836,0.03,140.17,140.12,50.53450222]
[1741392338543,50.56450222,140.17,140.1,50.53450222]
[1741392338748,50.53450222,140.14,140.07,50.53450222]
[1741392338925,50.53450222,140.13,140.06,50.53450222]
[1741392339125,50.53450222,140.14,140.07,50.53450222]
[1741392339825,50.53450222,140.12,140.03,1.5568]
[1741392340021,50.53450222,140.12,140.05,50.53450222]
[1741392340345,50.0,140.09,139.94,7.1459]
[1741392340531,50.53450222,140.04,139.97,50.53450222]
[1741392341242,82.3,140.08,140.02,50.53450222]
[1741392341444,50.53450222,140.09,140.02,50.53450222]
[1741392341756,50.53450222,140.11,140.05,50.53450222]
[1741392342053,6.4729,140.12,140.06,50.53450222]
[1741392342769,132.83450222,140.13,140.07,50.53450222]
[1741392342930,8.1356,140.17,140.1,50.53450222]
[1741392342931,65.80430222,140.17,140.1,50.53450222]
[1741392343244,0.03,140.17,140.11,50.53450222]
[1741392343431,50.53450222,140.16,140.09,50.53450222]
[1741392343634,57.69870222,140.17,140.1,50.53450222]
[1741392343832,57.69870222,140.17,140.07,50.53450222]
[1741392343833,0.03,140.17,140.12,50.53450222]
[1741392344032,0.03,140.17,140.07,50.53450222]
[1741392344033,0.03,140.17,140.13,50.53450222]
[1741392344753,0.03,140.17,140.12,50.53450222]
[1741392345151,0.03,140.17,140.14,50.53450222]
[1741392345731,0.03,140.17,140.13,50.53450222]
[1741392346356,0.03,140.17,140.11,50.53450222]
[1741392347050,0.03,140.17,140.07,57.67360222]
[1741392347051,0.03,140.17,140.12,50.53450222]
[1741392347460,50.53450222,140.16,140.09,50.53450222]
[1741392347756,50.53450222,140.15,140.08,50.53450222]
[1741392347962,50.53450222,140.16,140.09,50.53450222]
[1741392348540,50.53450222,140.15,140.08,50.53450222]
[1741392348735,50.53450222,140.16,140.1,50.53450222]
[1741392349131,7.1352,140.15,140.09,50.53450222]
[1741392349640,57.66970222,140.15,140.08,50.53450222]
[1741392350157,50.53450222,140.13,140.06,50.53450222]
[1741392350342,50.53450222,140.14,140.07,50.53450222]
[1741392350543,50.53450222,140.13,140.07,50.53450222]
[1741392350744,50.53450222,140.13,140.06,50.53450222]
[1741392350943,50.53450222,140.13,140.07,50.53450222]
[1741392351274,57.67020222,140.14,140.07,50.53450222]
[1741392351447,7.1357,140.14,140.08,50.53450222]
[1741392351650,7.1357,140.14,140.09,50.53450222]
[1741392352268,57.67020222,140.14,140.08,50.53450222]
[1741392353268,50.53450222,140.12,140.05,50.53450222]
[1741392353448,50.53450222,140.11,140.01,7.1421]
[1741392353647,50.53450222,140.09,140.03,50.53450222]
[1741392353851,82.3,140.13,140.01,50.53450222]
[1741392354050,50.53450222,140.07,140.01,50.53450222]
[1741392354350,50.53450222,140.06,140.0,50.53450222]
[1741392354662,50.53450222,140.07,140.0,50.53450222]
[1741392354851,50.53450222,140.07,140.01,50.53450222]
[1741392355048,50.53450222,140.08,140.01,50.53450222]
[1741392355260,7.1392,140.07,140.01,50.53450222]
[1741392355452,75.52190222,140.07,140.01,50.53450222]
[1741392358154,50.53450222,140.08,140.01,50.53450222]
[1741392358353,57.67340222,140.08,140.01,50.53450222]
[1741392358762,50.53450222,140.08,140.01,50.53450222]
[1741392359070,132.83450222,140.11,140.04,50.53450222]
[1741392359364,50.53450222,140.1,140.04,50.53450222]
[1741392359563,132.83450222,140.11,140.04,50.53450222]
[1741392359768,132.83450222,140.11,140.0,50.53450222]
[1741392359769,82.3,140.11,140.06,50.53450222]
[1741392360069,82.3,140.15,140.09,50.53450222]